bitfinex/quotes_ETHUSD_20251017
["timestamp","ask_amount","ask_price","bid_price","bid_amount"]
[1760678328576,34.52137641,3917.4,3917.3,0.002]
[1760678328734,31.96866288,3917.4,3917.3,0.002]
[1760678329237,32.01567993,3917.4,3917.3,0.002]
[1760678329653,34.12080493,3917.4,3917.3,0.002]
[1760678330467,31.5680914,3917.4,3917.3,0.002]
[1760678331037,34.12080493,3917.4,3917.3,0.002]
[1760678331567,7.85442493,3917.4,3917.3,0.002]
[1760678331770,34.12080493,3917.4,3917.3,0.002]
[1760678332566,8.25503835,3917.4,3917.3,0.002]
[1760678332780,34.52141835,3917.4,3917.3,0.002]
[1760678333477,31.80061035,3917.4,3917.3,0.002]
[1760678333652,34.52141835,3917.4,3917.3,0.002]
[1760678334251,31.85965335,3917.4,3917.3,0.002]
[1760678334774,34.52141835,3917.4,3917.3,0.002]
[1760678335140,41.52141835,3917.4,3917.3,0.002]
[1760678335768,41.24264135,3917.4,3917.3,0.002]
[1760678336753,41.52141835,3917.4,3917.3,0.002]
[1760678341872,41.52141835,3917.4,3917.3,0.002]
[1760678343057,41.12080493,3917.4,3917.3,0.002]
[1760678344783,41.17080493,3917.4,3917.3,0.002]
[1760678344948,41.17080493,3917.4,3916.9,0.002]
[1760678344949,28.81935421,3917.0,3916.9,0.002]
[1760678345278,28.81935421,3917.0,3916.5,0.002]
[1760678345279,30.54761494,3916.6,3916.5,0.002]
[1760678345444,38.77196598,3916.6,3916.5,0.002]
[1760678345653,39.23596598,3916.6,3916.5,0.002]
[1760678346056,36.61942065,3916.6,3916.5,0.002]
[1760678346259,42.13681185,3916.6,3916.5,0.002]
[1760678348983,15.87043185,3916.6,3916.5,0.002]
[1760678349309,42.13681185,3916.6,3916.5,0.002]
[1760678350321,39.58357691,3916.6,3916.5,0.002]
[1760678350795,30.89522587,3916.6,3916.5,0.002]
[1760678350994,4.70768961,3916.6,3916.5,0.0411]
[1760678351306,30.97406961,3916.6,3916.5,0.002]
[1760678351535,30.57338,3916.6,3916.5,0.002]
[1760678352211,28.84538,3916.6,3916.5,0.0411]
[1760678353881,28.84538,3916.6,3916.5,0.002]
[1760678354103,30.749674,3916.6,3916.5,0.002]
[1760678354292,31.15029323,3916.6,3916.5,0.002]
[1760678354492,32.87829323,3916.6,3916.5,0.002]
[1760678354679,33.34229323,3916.6,3916.5,0.002]
[1760678355405,38.98764427,3916.6,3916.5,0.002]
[1760678355599,39.09009239,3916.6,3916.5,0.002]
[1760678356121,41.54087921,3916.6,3916.5,0.002]
[1760678356505,38.98764427,3916.6,3916.5,0.002]
[1760678357022,45.52364427,3916.6,3916.5,0.002]
[1760678357338,39.87829323,3916.6,3916.5,0.002]
[1760678358537,37.29929323,3916.6,3916.5,0.002]
[1760678358736,37.97399923,3916.6,3916.5,0.002]
[1760678359052,38.43799923,3916.6,3916.5,0.002]
[1760678360004,40.99123417,3916.6,3916.5,0.002]
[1760678360950,44.08335027,3916.6,3916.5,0.002]
[1760678361238,49.13674147,3916.6,3916.5,0.002]
[1760678361438,49.2391888,3916.6,3916.5,0.002]
[1760678362244,22.9728088,3916.6,3916.5,0.002]
[1760678362444,49.2391888,3916.6,3916.5,0.002]
[1760678362606,37.99760282,3916.6,3916.5,0.002]
[1760678362840,40.47415549,3916.6,3916.5,0.002]
[1760678363241,14.20777549,3916.6,3916.5,0.002]
[1760678363471,40.47415549,3916.6,3916.5,0.002]
[1760678364585,36.24599923,3916.6,3916.5,0.002]
[1760678364888,35.73333323,3916.6,3916.5,0.0411]
[1760678365243,37.97399923,3916.6,3916.5,0.002]
[1760678365570,38.40259923,3916.6,3916.5,0.002]
[1760678365788,37.97399923,3916.6,3916.5,0.002]
[1760678365968,40.47415549,3916.6,3916.5,0.002]
[1760678367475,37.97399923,3916.6,3916.5,0.002]
[1760678368287,37.41758623,3916.6,3916.5,0.0411]
[1760678368991,37.41758623,3916.6,3916.5,0.002]
[1760678369346,37.97399923,3916.6,3916.5,0.002]
[1760678371301,11.70761923,3916.6,3916.5,0.002]
[1760678371499,39.16673115,3916.6,3916.5,0.002]
[1760678372189,38.76611192,3916.6,3916.5,0.002]
[1760678375295,39.16674653,3916.6,3916.5,0.002]
[1760678375992,37.97401461,3916.6,3916.5,0.002]
[1760678376689,36.94303061,3916.6,3916.5,0.0411]
[1760678377365,36.94303061,3916.6,3916.5,0.002]
[1760678377366,11.70763461,3916.6,3916.5,0.002]
[1760678377556,36.35621761,3916.6,3916.5,0.002]
[1760678378500,37.97401461,3916.6,3916.5,0.002]
[1760678379098,37.08176361,3916.6,3916.5,0.002]
[1760678379488,37.57338,3916.6,3916.5,0.002]
[1760678380901,27.586951,3916.6,3916.5,0.002]
[1760678381696,27.909838,3916.6,3916.5,0.002]
[1760678382078,27.622118,3916.6,3916.5,0.002]
[1760678382590,27.176852,3916.6,3916.5,0.002]
[1760678382790,27.57747232,3916.6,3916.5,0.002]
[1760678383578,27.47858832,3916.6,3916.5,0.002]
[1760678384404,26.00029732,3916.6,3916.5,0.002]
[1760678384599,24.65594132,3916.6,3916.5,0.002]
[1760678385003,9.97962032,3916.6,3916.5,0.002]
[1760678385193,9.97962032,3916.6,3916.5,0.0411]
[1760678386510,2.97962032,3916.6,3916.5,0.0411]
[1760678387401,2.97962032,3916.6,3916.5,0.002]
[1760678388518,2.579,3916.6,3916.5,0.002]
[1760678388826,8.47767,3916.6,3916.5,0.002]
[1760678388993,8.207446,3916.6,3916.5,0.002]
[1760678389823,7.835112,3916.6,3916.5,0.002]
[1760678390019,2.579,3916.6,3916.5,0.002]
[1760678390226,2.579,3916.6,3916.5,0.0411]
[1760678392212,2.579,3916.6,3916.5,0.002]
[1760678393902,2.579,3916.6,3916.5,0.0411]
[1760678394140,0.001,3916.9,3916.8,3.18670457]
[1760678394329,0.001,3916.9,3916.8,12.59602603]
[1760678394534,0.001,3916.9,3916.8,12.63512603]
[1760678394909,0.001,3916.9,3916.8,7.9304653]
[1760678398727,0.001,3916.9,3916.8,3.22580457]
[1760678398932,0.001,3916.9,3916.8,7.9304653]
[1760678399328,0.001,3916.9,3916.8,3.18670457]
[1760678400240,0.001,3916.9,3916.5,0.002]
[1760678400478,0.1272,3916.6,3916.5,0.002]
[1760678400628,0.5872,3916.6,3916.5,0.002]
[1760678400924,17.425365,3916.6,3916.5,0.002]
[1760678401129,7.64875757,3916.6,3916.5,0.002]
[1760678401330,3.18003,3916.6,3916.5,0.002]
[1760678401738,0.1272,3916.6,3916.5,0.002]
[1760678401925,0.001,3916.9,3916.5,0.002]
[1760678402154,0.001,3916.9,3916.5,2.58080795]
[1760678402329,0.001,3916.9,3916.7,0.6336]
[1760678402666,0.1282,3916.9,3916.8,3.18670457]
[1760678403028,0.1282,3916.9,3916.8,3.22580457]
[1760678403029,0.001,3916.9,3916.8,3.22580457]
[1760678403484,0.001,3916.9,3916.8,3.37853561]
[1760678403772,0.001,3916.9,3916.8,5.10653561]
[1760678403981,0.001,3916.9,3916.8,5.08100457]
[1760678407377,0.001,3916.9,3916.8,19.33816215]
[1760678410190,0.001,3917.3,3917.2,4.91444386]
[1760678410478,0.001,3917.3,3917.2,7.51697229]
[1760678410684,0.001,3917.3,3917.2,7.65774386]
[1760678412449,0.001,3917.7,3917.6,4.91418321]
[1760678412682,0.001,3917.7,3917.6,21.77386662]
[1760678412882,0.001,3917.7,3917.6,21.91464079]
[1760678415083,0.001,3918.1,3918.0,3.18592261]
[1760678415395,0.001,3918.1,3918.0,5.78844583]
[1760678415549,0.001,3918.1,3918.0,5.92922261]
[1760678415750,0.001,3918.1,3918.0,4.95302261]
[1760678416070,0.001,3918.1,3918.0,5.08022261]
[1760678416273,0.001,3918.1,3918.0,7.49092261]
[1760678417192,0.4677,3918.1,3918.0,2.55232261]
[1760678417391,0.4677,3918.1,3918.0,3.18592261]
[1760678417758,0.001,3918.1,3918.0,3.18592261]
[1760678418086,0.4677,3918.1,3918.0,2.55232261]
[1760678418265,0.4677,3918.1,3918.0,3.18592261]
[1760678420791,0.4677,3918.1,3918.0,2.55232261]
[1760678421091,0.4677,3918.1,3918.0,3.18592261]
[1760678421998,0.4677,3918.1,3918.0,0.6336]
[1760678422758,0.4677,3918.1,3918.0,3.18592261]
[1760678423392,0.001,3918.1,3918.0,3.18592261]
[1760678425674,0.001,3918.1,3918.0,3.22502261]
[1760678426196,0.001,3918.1,3918.0,3.18592261]
[1760678426398,0.001,3918.1,3918.0,3.31312261]
[1760678426719,0.001,3918.1,3918.0,3.35222261]
[1760678426998,0.001,3918.1,3918.0,5.08022261]
[1760678427562,0.001,3918.1,3918.0,5.04112261]
[1760678427976,0.001,3918.1,3918.0,5.08022261]
[1760678428297,0.001,3918.1,3918.0,5.04112261]
[1760678428679,0.001,3918.1,3918.0,5.08022261]
[1760678429573,0.001,3918.1,3918.0,5.04112261]
[1760678430889,0.4459,3918.1,3918.0,4.40752261]
[1760678431094,0.4459,3918.1,3918.0,5.04112261]
[1760678432418,0.4459,3918.1,3918.0,0.7608]
[1760678432607,0.4459,3918.1,3917.7,2.55246134]
[1760678432608,0.5731,3918.1,3917.7,2.55246134]
[1760678432796,0.2336,3917.8,3917.7,2.55246134]
[1760678432992,0.6785,3917.8,3917.7,3.18606134]
[1760678434795,0.001,3918.1,3918.0,3.18592261]
[1760678435004,0.001,3918.1,3918.0,3.21144583]
[1760678435321,0.001,3918.1,3918.0,5.04112261]
[1760678439344,0.4459,3918.1,3918.0,5.04112261]
[1760678439536,0.001,3918.1,3918.0,5.04112261]
[1760678441013,0.4459,3918.1,3918.0,5.04112261]
[1760678441208,0.001,3918.1,3918.0,5.04112261]
[1760678441615,0.4459,3918.1,3918.0,5.04112261]
[1760678441821,0.001,3918.1,3918.0,4.40752261]
[1760678442048,0.4459,3918.1,3918.0,4.28032261]
[1760678442243,0.4459,3918.1,3918.0,4.91392261]
[1760678444046,0.001,3918.1,3918.0,4.91392261]
[1760678444549,0.001,3918.1,3918.0,5.04112261]
[1760678450444,0.4459,3918.1,3918.0,4.28032261]
[1760678450641,0.4459,3918.1,3918.0,4.91392261]
[1760678450951,0.4459,3918.1,3918.0,4.28032261]
[1760678451325,0.4459,3918.1,3918.0,4.91392261]
[1760678454062,0.001,3918.1,3918.0,4.91392261]
[1760678454440,0.47,3918.1,3918.0,4.91392261]
[1760678455835,0.001,3918.1,3918.0,5.06048449]
[1760678456035,0.001,3918.1,3918.0,5.04112261]
[1760678458268,0.47,3918.1,3918.0,5.04112261]
[1760678460155,0.001,3918.1,3918.0,5.04112261]
[1760678461167,0.47,3918.1,3918.0,5.04112261]
[1760678461382,0.47,3918.1,3918.0,2.4888]
[1760678461562,0.001,3918.1,3918.0,5.04112261]
[1760678461732,0.4741,3918.1,3918.0,5.04112261]
[1760678462759,0.001,3918.1,3918.0,5.04112261]
[1760678463735,0.001,3918.1,3918.0,0.7608]
[1760678463940,0.4741,3918.1,3917.7,2.55251805]
[1760678464235,0.2227,3917.8,3917.7,3.18611805]
[1760678464564,0.001,3918.1,3918.0,3.18592261]
[1760678464765,0.001,3918.1,3918.0,3.21144583]
[1760678465068,0.001,3918.1,3918.0,8.82388658]
[1760678465771,0.001,3918.1,3918.0,3.18592261]
[1760678469068,0.001,3918.1,3918.0,10.5774098]
[1760678469278,0.001,3918.1,3918.0,10.55188658]
[1760678469676,0.001,3918.1,3918.0,10.59098658]
[1760678470674,0.001,3918.1,3918.0,10.55188658]
[1760678472188,0.001,3918.1,3918.0,13.12788658]
[1760678473867,0.001,3918.1,3918.0,13.25508658]
[1760678474485,0.001,3918.1,3918.0,13.29418658]
[1760678475394,0.001,3918.1,3918.0,13.29318658]
[1760678475786,0.001,3918.5,3918.4,3.18566206]
[1760678475986,0.001,3918.5,3918.4,13.15214665]
[1760678476189,0.001,3918.5,3918.4,13.29292603]
[1760678476418,0.001,3918.5,3918.4,13.25382603]
[1760678476606,0.001,3918.5,3918.4,13.29292603]
[1760678479025,0.001,3918.9,3918.8,4.91340157]
[1760678479190,0.001,3918.9,3918.8,13.27630003]
[1760678479518,0.001,3918.9,3918.8,13.29266554]
[1760678480026,0.001,3918.9,3918.8,13.25356554]
[1760678481485,0.001,3918.9,3918.8,10.67856554]
[1760678481724,0.001,3918.9,3918.8,13.25356554]
[1760678482606,0.001,3918.9,3918.8,13.71436554]
[1760678483140,0.001,3918.9,3918.8,13.75346554]
[1760678485223,0.2206,3920.0,3919.8,2.3616]
[1760678485425,0.2206,3920.0,3919.9,4.93819633]
[1760678485629,0.2206,3920.0,3919.9,5.06539633]
[1760678485945,0.2206,3920.0,3919.9,5.03988548]
[1760678486645,0.001,3920.1,3920.0,4.9126204]
[1760678486857,0.001,3920.6,3920.5,3.18429506]
[1760678486858,1e-08,3920.6,3920.5,3.18429506]
[1760678487039,1e-08,3920.6,3920.5,13.15076598]
[1760678487254,1e-08,3920.6,3920.5,13.25245903]
[1760678487814,0.001,3920.9,3920.7,4.91216495]
[1760678488015,0.001,3920.9,3920.7,5.06487059]
[1760678488241,0.001,3920.9,3920.7,5.03936495]
[1760678488517,0.001,3921.2,3921.0,4.9119698]
[1760678488855,0.001,3921.2,3920.8,1.728]
[1760678488856,0.2203,3921.8,3921.7,4.91151457]
[1760678489152,0.6811,3921.8,3921.7,10.54947854]
[1760678489352,0.6811,3921.8,3921.7,13.25167854]
[1760678491975,0.2203,3922.4,3922.3,3.18312451]
[1760678492279,0.6811,3922.4,3922.3,8.84658372]
[1760678492448,0.6811,3922.4,3922.3,8.82108848]
[1760678492651,0.6811,3922.4,3922.3,8.94828848]
[1760678494540,0.6811,3922.4,3922.1,1.728]
[1760678494756,0.4608,3922.3,3922.1,1.728]
[1760678494956,0.4608,3922.2,3921.8,0.1272]
[1760678495179,0.4608,3922.2,3921.8,5.03864955]
[1760678495180,0.2203,3921.9,3921.8,5.03864955]
[1760678495342,0.6811,3921.9,3921.8,5.03864955]
[1760678496256,0.6811,3921.9,3921.8,1.728]
[1760678496466,0.6811,3921.9,3921.8,4.27784955]
[1760678496670,0.6811,3921.9,3921.6,2.54991739]
[1760678496893,0.2203,3921.9,3921.7,1.728]
[1760678497184,0.4608,3921.8,3921.7,4.91149757]
[1760678499511,0.4608,3921.8,3921.7,9.60043581]
[1760678499895,0.2203,3921.9,3921.8,3.18344955]
[1760678500307,0.6811,3921.9,3921.8,3.18344955]
[1760678504425,0.2203,3921.9,3921.8,3.18344955]
[1760678505001,0.6811,3921.9,3921.8,3.18344955]
[1760678505203,0.6811,3921.9,3921.8,4.91144955]
[1760678508816,0.2213,3922.4,3922.3,0.6336]
[1760678509254,0.2213,3922.4,3922.3,3.18312451]
[1760678509477,0.6821,3922.4,3922.3,3.18312451]
[1760678511219,0.2213,3922.4,3922.3,3.18312451]
[1760678511416,0.6588,3922.4,3922.3,3.18312451]
[1760678512347,0.6588,3922.4,3922.3,0.6336]
[1760678517150,0.6588,3922.4,3922.0,0.6336]
[1760678517487,0.4375,3922.3,3922.0,0.6336]
[1760678517656,0.4375,3922.3,3921.9,0.6336]
[1760678517858,0.4375,3922.2,3921.9,0.6336]
[1760678518078,0.2213,3922.4,3921.9,3.18337903]
[1760678518079,0.4375,3922.1,3921.9,3.18337903]
[1760678518349,0.4375,3922.0,3921.9,4.91137903]
[1760678520062,0.4564,3922.3,3922.2,0.6336]
[1760678520556,0.4564,3922.3,3922.2,3.18318951]
[1760678520772,0.2213,3922.4,3922.3,3.18312451]
[1760678520976,0.6777,3922.4,3922.3,3.18312451]
[1760678521210,0.6777,3922.4,3922.3,0.6336]
[1760678521375,0.6777,3922.4,3922.3,3.18312451]
[1760678522305,0.6777,3922.4,3922.3,0.6336]
[1760678524302,0.6777,3922.4,3922.2,0.6336]
[1760678524521,0.4564,3922.3,3922.2,0.6336]
[1760678524880,0.4564,3922.3,3922.2,3.18318951]
[1760678525702,0.4564,3922.3,3922.2,0.6336]
[1760678526101,0.4564,3922.3,3922.2,3.18318951]
[1760678526482,0.001,3922.4,3922.3,3.18312451]
[1760678527111,0.001,3922.4,3922.3,9.62555799]
[1760678527307,0.001,3922.4,3922.3,9.60006275]
[1760678529397,0.001,3922.4,3922.3,9.76636275]
[1760678530829,0.001,3922.4,3922.3,9.72726275]
[1760678530994,0.001,3922.4,3922.3,9.76636275]
[1760678531514,0.001,3922.4,3922.3,9.72726275]
[1760678538616,0.001,3922.4,3922.3,14.45530099]
[1760678538828,0.001,3922.4,3922.3,9.98516275]
[1760678539612,0.001,3922.4,3922.3,9.94606275]
[1760678540227,0.001,3922.4,3922.3,12.51806275]
[1760678542255,0.001,3922.4,3922.3,12.55716275]
[1760678542918,0.001,3922.8,3922.3,12.55716275]
[1760678542919,0.001,3922.8,3922.7,3.18286453]
[1760678543116,0.001,3922.8,3922.7,12.19729541]
[1760678543330,0.001,3922.8,3922.7,9.72700277]
[1760678543533,0.001,3922.8,3922.7,12.29900277]
[1760678545869,0.001,3922.8,3922.7,17.02704101]
[1760678546454,0.001,3923.2,3923.1,4.91060461]
[1760678546655,0.001,3923.2,3923.1,12.29874285]
[1760678547131,0.001,3923.2,3923.1,12.98744285]
[1760678547337,0.7049,3924.5,3924.4,3.18176022]
[1760678547556,0.2365,3924.5,3924.4,9.59869846]
[1760678547763,0.7049,3924.5,3924.4,9.72589846]
[1760678547968,0.7049,3924.5,3924.4,10.49210272]
[1760678549136,0.7049,3924.5,3924.4,5.80316448]
[1760678549360,0.2365,3924.5,3924.4,10.49210272]
[1760678549640,0.7049,3924.8,3924.7,0.6336]
[1760678549840,0.2365,3924.8,3924.7,3.18156544]
[1760678550143,0.2365,3924.8,3924.7,3.30876544]
[1760678550479,0.7049,3924.8,3924.7,3.30876544]
[1760678552192,0.7049,3924.8,3924.7,0.7608]
[1760678552382,0.7049,3924.8,3924.7,3.30876544]
[1760678557115,0.7059,3924.8,3924.7,3.30876544]
[1760678561519,0.7059,3924.8,3924.7,0.6336]
[1760678563317,0.7059,3924.8,3924.7,3.18156544]
[1760678565132,0.001,3924.8,3924.7,3.18156544]
[1760678565697,0.4694,3924.8,3924.7,3.18156544]
[1760678570203,0.4694,3924.8,3924.7,0.6336]
[1760678572046,0.4446,3924.8,3924.7,0.6336]
[1760678573112,0.4446,3924.8,3923.8,2.54848744]
[1760678573316,0.2309,3924.0,3923.9,1.728]
[1760678573511,0.6745,3924.0,3923.8,1.728]
[1760678573732,0.6745,3924.0,3923.9,0.6336]
[1760678574045,0.6745,3924.0,3923.7,1.728]
[1760678574855,0.6745,3924.0,3923.8,0.6336]
[1760678575218,0.6745,3924.0,3923.7,1.728]
[1760678575418,0.6745,3924.0,3923.8,0.6336]
[1760678576846,0.2309,3924.0,3923.8,0.6336]
[1760678577145,0.6745,3923.9,3923.8,0.6336]
[1760678577721,0.6745,3923.9,3923.6,0.6336]
[1760678577923,0.2309,3923.9,3923.8,0.6336]
[1760678578323,0.2309,3923.9,3923.8,2.3616]
[1760678578525,0.6745,3923.9,3923.8,2.3616]
[1760678579040,0.6745,3923.9,3923.8,0.6336]
[1760678579241,3.2445,3923.9,3923.1,0.002]
[1760678579553,0.34754,3923.8,3923.1,0.002]
[1760678580023,0.445,3923.7,3923.1,0.002]
[1760678580545,0.39984019,3923.7,3923.2,2.5489027]
[1760678580745,0.39984019,3923.7,3923.6,2.54867978]
[1760678580968,2.57,3923.9,3923.8,0.6336]
[1760678581178,2.57,3923.9,3923.8,3.18214987]
[1760678581341,2.57,3923.9,3923.8,0.6336]
[1760678581542,2.57,3923.9,3923.8,4.93563536]
[1760678582359,2.57,3923.9,3923.8,4.91014987]
[1760678585772,2.571,3924.8,3924.7,3.18156544]
[1760678585974,0.001,3924.8,3924.7,3.18156544]
[1760678586153,0.001,3924.8,3924.7,3.20704509]
[1760678586546,0.001,3924.8,3924.7,3.18156544]
[1760678587560,0.446,3924.8,3924.7,0.6336]
[1760678588977,0.446,3924.8,3924.3,2.3616]
[1760678589263,0.445,3924.7,3924.1,4.27634167]
[1760678589463,0.445,3924.7,3924.4,0.6336]
[1760678589667,0.445,3924.6,3924.4,0.6336]
[1760678589962,0.001,3924.8,3924.0,0.6336]
[1760678590167,0.446,3924.8,3924.5,0.6336]
[1760678590376,0.446,3924.8,3924.7,3.18156544]
[1760678590377,0.001,3924.8,3924.7,3.18156544]
[1760678592215,0.001,3924.8,3924.7,0.6336]
[1760678592401,0.446,3924.8,3924.7,0.6336]
[1760678594297,0.001,3924.8,3924.7,0.6336]
[1760678594780,0.001,3924.8,3924.7,3.18156544]
[1760678596007,0.001,3924.8,3924.7,0.6336]
[1760678596806,0.001,3924.8,3924.7,3.18156544]
[1760678598115,0.001,3924.8,3924.7,0.6336]
[1760678599509,0.001,3924.8,3924.7,4.90956544]
[1760678599721,0.001,3924.8,3924.7,5.03676544]
[1760678602716,0.001,3924.8,3924.7,0.1272]
[1760678603027,0.001,3924.8,3924.7,2.54796544]
[1760678603226,0.001,3924.8,3924.7,4.90956544]
[1760678604939,0.001,3924.8,3924.7,10.56800791]
[1760678607324,0.001,3924.8,3924.7,4.90956544]
[1760678611016,0.462,3924.8,3924.2,2.54823483]
[1760678611217,0.461,3924.7,3924.3,2.5482034]
[1760678611541,0.461,3924.7,3922.9,0.461]
[1760678611542,0.461,3924.6,3923.1,0.002]
[1760678611738,1.00499,3924.6,3923.6,2.54863442]
[1760678611936,0.461,3924.5,3923.1,0.002]
[1760678612460,0.2189,3923.2,3923.1,0.002]
[1760678612810,0.6799,3923.2,3923.1,0.002]
[1760678613522,0.6799,3923.2,3923.1,2.55100461]
[1760678613929,0.2189,3923.7,3923.6,3.18227978]
[1760678614227,0.54399,3924.6,3923.1,1.73]
[1760678614228,2.57,3924.3,3923.9,0.6336]
[1760678614419,2.57,3924.3,3924.2,3.18189009]
[1760678614617,2.57,3924.3,3924.2,0.6336]
[1760678615042,3.031,3924.3,3924.2,0.6336]
[1760678619937,2.57,3924.3,3924.2,0.6336]
[1760678621130,3.031,3924.3,3924.2,0.6336]
[1760678621618,2.57,3924.3,3924.2,0.6336]
[1760678621833,2.57,3924.3,3924.2,3.18189009]
[1760678622576,2.57,3924.3,3924.2,0.6336]
[1760678622879,2.57,3924.3,3924.2,3.18189009]
[1760678623024,0.001,3924.8,3924.6,2.54797575]
[1760678623229,2.571,3924.8,3924.7,2.54796544]
[1760678624242,2.571,3924.8,3924.7,7.86678759]
[1760678624832,2.571,3924.8,3924.7,3.18156544]
[1760678625537,0.001,3924.8,3924.7,9.76108759]
[1760678626471,0.461,3925.8,3924.7,9.76108759]
[1760678626472,0.6799,3926.7,3925.1,0.6336]
[1760678626676,0.6799,3926.7,3925.0,2.5477707]
[1760678626677,2.57,3926.8,3926.7,3.18026768]
[1760678626852,2.57,3927.1,3926.7,0.6336]
[1760678627051,2.57,3927.1,3927.0,7.8652621]
[1760678627353,0.13324208,3927.2,3927.1,0.6336]
[1760678628084,0.13324208,3927.2,3927.0,0.1272]
[1760678628289,0.13324208,3927.2,3927.1,0.6336]
[1760678629081,0.13324208,3927.2,3927.1,3.18000829]
[1760678629393,0.13324208,3927.2,3927.1,0.6336]
[1760678633269,0.13324208,3927.2,3926.3,2.54690337]
[1760678633471,0.4679,3927.1,3926.4,4.27480493]
[1760678633673,0.4679,3927.1,3926.5,0.6336]
[1760678633877,0.4679,3927.1,3926.5,3.18038879]
[1760678634283,0.4679,3927.1,3926.7,0.6336]
[1760678634465,0.4679,3927.0,3926.3,0.6336]
[1760678634784,2.7932,3926.9,3926.2,1.728]
[1760678634947,0.4679,3926.8,3925.8,1.728]
[1760678635150,0.4679,3926.7,3926.0,2.3616]
[1760678635384,0.4679,3926.6,3925.2,2.547626]
[1760678635587,3.0389,3926.5,3924.9,5.11882447]
[1760678635751,3.0389,3926.5,3925.7,1.728]
[1760678635949,2.571,3926.5,3925.0,1.7534777]
[1760678636191,2.571,3926.5,3926.0,2.5471199]
[1760678636374,2.571,3926.5,3926.1,0.6336]
[1760678636754,2.571,3926.5,3926.3,0.6336]
[1760678637070,2.571,3926.5,3926.1,0.6336]
[1760678637281,0.4679,3926.4,3925.2,16.79853613]
[1760678637465,0.4679,3926.4,3926.0,0.6336]
[1760678637872,0.4679,3926.3,3925.7,2.54729999]
[1760678638077,0.4679,3926.3,3925.8,0.6336]
[1760678638279,0.2222,3925.9,3925.8,0.6336]
[1760678638588,3.2621,3925.9,3925.4,2.54749288]
[1760678638760,0.4679,3925.8,3925.5,1.728]
[1760678639399,2.7942,3925.9,3925.6,0.6336]
[1760678639557,2.7942,3925.9,3924.7,2.572]
[1760678639558,2.7942,3925.9,3924.8,0.6336]
[1760678639757,2.7942,3925.9,3925.7,0.6336]
[1760678639962,2.572,3925.9,3925.7,3.18090357]
[1760678640359,0.2222,3926.9,3925.9,0.6336]
[1760678640666,0.495,3926.8,3926.5,2.54678082]
[1760678640880,0.495,3926.8,3926.6,3.18032238]
[1760678641104,0.495,3926.8,3926.4,0.6336]
[1760678641601,0.495,3926.8,3926.6,3.18027444]
[1760678641778,0.495,3926.8,3926.7,3.18026768]
[1760678642500,2.70624208,3927.2,3926.9,0.6336]
[1760678642685,2.70724208,3927.2,3927.1,0.6336]
[1760678642883,2.70724208,3927.2,3927.1,3.18000829]
[1760678643782,2.574,3927.2,3927.1,3.18000829]
[1760678644391,2.574,3927.2,3927.1,4.90800829]
[1760678644587,0.001,3927.2,3927.1,4.90800829]
[1760678644817,0.001,3927.2,3927.1,5.09977237]
[1760678644990,0.001,3927.2,3927.1,5.07430829]
[1760678646909,0.001,3927.2,3927.1,19.26174442]
[1760678648395,0.001,3927.2,3927.1,5.35820829]
[1760678648600,0.001,3927.2,3927.1,4.72460829]
[1760678648914,0.001,3927.2,3927.1,4.27440829]
[1760678649409,0.001,3927.2,3927.1,4.90800829]
[1760678650905,0.4521,3927.2,3927.1,4.27440829]
[1760678651479,0.4521,3927.2,3927.1,4.90800829]
[1760678651683,0.4521,3927.2,3927.1,2.3616]
[1760678651917,0.4521,3927.2,3927.1,4.90800829]
[1760678652610,0.4521,3927.2,3927.1,4.27440829]
[1760678653189,0.4521,3927.2,3927.1,4.90800829]
[1760678653391,0.4521,3927.2,3925.7,14.18743613]
[1760678653602,0.4521,3927.2,3924.4,0.002]
[1760678653603,0.6849,3927.1,3925.8,2.573]
[1760678653910,0.4511,3927.0,3926.6,2.54667389]
[1760678654118,0.2338,3927.1,3926.6,0.6336]
[1760678654119,0.4511,3926.9,3926.6,0.6336]
[1760678654279,0.4511,3926.8,3926.6,0.6336]
[1760678654481,0.2338,3927.1,3926.7,0.6336]
[1760678654712,0.2338,3927.1,3926.9,0.6336]
[1760678655083,0.4511,3927.0,3926.8,0.6336]
[1760678655412,0.4511,3926.9,3926.7,0.6336]
[1760678655605,0.4511,3926.8,3926.7,3.18026768]
[1760678656589,0.2338,3927.1,3926.5,0.6336]
[1760678656789,0.2338,3927.1,3926.4,2.54685475]
[1760678656790,0.4511,3927.0,3926.8,0.6336]
[1760678657018,0.4511,3926.9,3926.8,0.6336]
[1760678658187,0.4511,3926.9,3926.1,2.54699618]
[1760678658387,3.0241,3926.8,3925.4,2.54751108]
[1760678658594,0.4511,3926.7,3926.2,4.2749633]
[1760678658797,0.4511,3926.6,3926.3,0.6336]
[1760678658991,2.573,3926.8,3926.2,4.2749633]
[1760678659197,0.4511,3926.5,3926.3,0.6336]
[1760678659731,3.0241,3926.8,3926.5,2.54678687]
[1760678660027,0.4511,3926.7,3926.5,2.54678687]
[1760678661426,2.573,3926.8,3926.6,3.18033254]
[1760678661624,2.573,3926.8,3926.3,0.02546927]
[1760678661625,2.572,3926.9,3926.3,0.02546927]
[1760678661824,2.572,3926.9,3926.8,3.18020283]
[1760678662503,2.572,3926.9,3926.8,0.6336]
[1760678662711,3.0344,3926.9,3926.8,0.6336]
[1760678669630,3.43388619,3926.9,3926.8,0.6336]
[1760678670525,3.80075481,3926.9,3926.3,0.6336]
[1760678670729,0.4624,3926.8,3925.7,0.1272]